fUSD/lending_fUSD_20240905
["ID","MTS","AMOUNT","RATE_DAILY","PERIOD"]
[337212336,1725501051540,-500.0,0.00014972,2]
[337212337,1725501051550,-1289.87,0.00014972,2]
[337212338,1725501051559,-500.0,0.00014972,2]
[337212339,1725501051568,-500.0,0.00014972,2]
[337212340,1725501051577,-875.37,0.00014972,2]
[337212341,1725501051586,-625.54,0.00014972,2]
[337212342,1725501051595,-743.54,0.00014972,2]
[337212343,1725501051604,-1846.82,0.00014972,2]
[337212344,1725501051613,-500.0,0.00014972,2]
[337212345,1725501051622,-500.0,0.00014972,2]
[337212346,1725501051631,-1087.48,0.00014972,2]
[337212347,1725501051640,-500.0,0.00014972,2]
[337212348,1725501051650,-274.1634097,0.00014972,2]
[337212349,1725501051659,-846.52,0.00014972,2]
[337212350,1725501051668,-961.98,0.00014972,2]
[337212351,1725501051677,-1844.78,0.00014972,2]
[337212352,1725501051687,-1108.75,0.00014972,2]
[337212353,1725501051696,-2656.38,0.00014972,2]
[337212354,1725501051705,-812.89,0.00014972,2]
[337212355,1725501051714,-500.0,0.00014972,2]
[337212356,1725501051723,-500.0,0.00014972,2]
[337212357,1725501051732,-764.18,0.00014972,2]
[337212358,1725501051742,-500.0,0.00014972,2]
[337212359,1725501051751,-2466.34,0.00014972,2]
[337212360,1725501051760,-3080.79,0.00014972,2]
[337212361,1725501051769,-500.0,0.00014972,2]
[337212362,1725501051778,-500.0,0.00014972,2]
[337212363,1725501051787,-1138.67,0.00014972,2]
[337212364,1725501051796,-811.05,0.00014972,2]
[337212365,1725501051806,-1327.1,0.00014972,2]
[337212366,1725501051815,-500.0,0.00014972,2]
[337212367,1725501051824,-500.0,0.00014972,2]
[337212368,1725501051833,-691.73,0.00014972,2]
[337212369,1725501051843,-1036.16,0.00014972,2]
[337212370,1725501051852,-622.99,0.00014972,2]
[337212371,1725501051861,-500.0,0.00014972,2]
[337212372,1725501051870,-516.499912,0.00014972,2]
[337212373,1725501051880,-500.0,0.00014972,2]
[337212374,1725501051890,-500.0,0.00014972,2]
[337212375,1725501051900,-1354.44,0.00014972,2]
[337212376,1725501051909,-680.76,0.00014972,2]
[337212377,1725501051919,-958.36,0.00014972,2]
[337212378,1725501051928,-500.0,0.00014972,2]
[337212379,1725501051938,-1518.49,0.00014972,2]
[337212380,1725501051948,-221.24478056,0.00014972,2]
[337212381,1725501051959,-1118.3,0.00014972,2]
[337212382,1725501051973,-500.0,0.00014972,2]
[337212383,1725501051983,-500.0,0.00014972,2]
[337212384,1725501051992,-500.0,0.00014972,2]
[337212385,1725501052002,-636.1,0.00014972,2]
[337212386,1725501052011,-500.0,0.00014972,2]
[337212387,1725501052020,-889.54,0.00014972,2]
[337212388,1725501052030,-500.0,0.00014972,2]
[337212389,1725501052039,-500.0,0.00014972,2]
[337212390,1725501052049,-582.39,0.00014972,2]
[337212391,1725501052058,-500.0,0.00014972,2]
[337212392,1725501052068,-500.94,0.00014972,2]
[337212393,1725501052077,-624.44,0.00014972,2]
[337212394,1725501052087,-521.59374751,0.00014972,2]
[337212395,1725501052097,-500.0,0.00014973,2]
[337212396,1725501052107,-3153.18,0.00014973,2]
[337212397,1725501052117,-940.12,0.00014973,2]
[337212398,1725501052126,-566.94,0.00014973,2]
[337212399,1725501052136,-534.68,0.00014973,2]
[337212400,1725501052146,-518.7,0.00014973,2]
[337212401,1725501052155,-1065.97,0.00014973,2]
[337212402,1725501052165,-837.31,0.00014973,2]
[337212403,1725501052174,-500.0,0.00014974,2]
[337212404,1725501052184,-1021.79,0.00014974,2]
[337212405,1725501052193,-500.0,0.00014974,2]
[337212406,1725501052204,-922.89,0.00014974,2]
[337212407,1725501052213,-500.0,0.00014974,2]
[337212408,1725501052223,-500.0,0.00014974,2]
[337212409,1725501052234,-1807.0,0.00014974,2]
[337212410,1725501052243,-2541.07,0.00014974,2]
[337212411,1725501052253,-500.0,0.00014974,2]
[337212412,1725501052263,-500.0,0.00014974,2]
[337212413,1725501052274,-500.0,0.00014974,2]
[337212414,1725501052283,-591.92,0.00014974,2]
[337212415,1725501052294,-546.34,0.00014974,2]
[337212416,1725501052304,-552.38,0.00014974,2]
[337212417,1725501052315,-541.13337438,0.00014974,2]
[337212418,1725501052325,-500.0,0.00014974,2]
[337212419,1725501052334,-462.54464413,0.00014974,2]
[337212420,1725501052344,-588.03,0.00014974,2]
[337212421,1725501052354,-1053.46,0.00014974,2]
[337212422,1725501052364,-500.0,0.00014974,2]
[337212423,1725501052373,-500.0,0.00014974,2]
[337212424,1725501052383,-573.64,0.00014974,2]
[337212425,1725501052393,-501.43965603,0.00014974,2]
[337212426,1725501052403,-2719.8,0.00014974,2]
[337212427,1725501052412,-504.64211761,0.00014974,2]
[337212428,1725501052422,-500.0,0.00014974,2]
[337212429,1725501052431,-500.0,0.00014974,2]
[337212430,1725501052441,-323.46361251,0.00014974,2]
[337212431,1725501052451,-500.0,0.00014974,2]
[337212432,1725501052460,-500.0,0.00014974,2]
[337212433,1725501052470,-500.0,0.00014974,2]
[337212434,1725501052479,-500.0,0.00014974,2]
[337212435,1725501052489,-500.0,0.00014974,2]
[337212436,1725501052498,-519.59314704,0.00014974,2]
[337212437,1725501052508,-500.0,0.00014974,2]
[337212438,1725501052517,-623.06671234,0.00014974,2]
[337212439,1725501052527,-846.14,0.00014974,2]
[337212440,1725501052536,-500.0,0.00014974,2]
[337212441,1725501052545,-989.47,0.00014974,2]
[337212442,1725501052555,-1269.37,0.00014974,2]
[337212443,1725501052564,-500.0,0.00014974,2]
[337212444,1725501052573,-500.0,0.00014974,2]
[337212445,1725501052582,-1302.95,0.00014974,2]
[337212446,1725501052591,-735.55,0.00014974,2]
[337212447,1725501052600,-759.75,0.00014974,2]
[337212448,1725501052610,-500.0,0.00014974,2]
[337212449,1725501052620,-500.0,0.00014974,2]
[337212450,1725501052630,-1391.46,0.00014974,2]
[337212451,1725501052639,-500.0,0.00014974,2]
[337212452,1725501052650,-545.5,0.00014974,2]
[337212453,1725501052660,-1426.67,0.00014974,2]
[337212454,1725501052670,-518.55,0.00014974,2]
[337212455,1725501052679,-500.0,0.00014974,2]
[337212456,1725501052688,-646.65,0.00014974,2]
[337212457,1725501052698,-500.0,0.00014974,2]
[337212458,1725501052707,-418.36967939,0.00014974,2]
[337212459,1725501052717,-500.0,0.00014974,2]
[337212460,1725501052726,-500.0,0.00014977,2]
[337212461,1725501052737,-500.0,0.00014977,2]
[337212462,1725501052746,-500.0,0.00014977,2]
[337212463,1725501052755,-500.0,0.00014977,2]
[337212464,1725501052765,-500.0,0.00014977,2]
[337212465,1725501052776,-500.0,0.00014977,2]
[337212466,1725501052785,-500.0,0.00014977,2]
[337212467,1725501052794,-500.0,0.00014977,2]
[337212468,1725501052804,-500.0,0.00014977,2]
[337212469,1725501052813,-500.0,0.00014977,2]
[337212470,1725501052823,-808.39,0.00014977,2]
[337212471,1725501052832,-808.39,0.00014977,2]
[337212472,1725501052841,-500.0,0.00014977,2]
[337212473,1725501052851,-500.0,0.00014977,2]
[337212474,1725501052860,-500.0,0.00014977,2]
[337212475,1725501052870,-528.98964077,0.00014977,2]
[337212476,1725501052879,-500.0,0.00014977,2]
[337212477,1725501052889,-502.64570198,0.00014977,2]
[337212478,1725501052900,-500.0,0.00014977,2]
[337212479,1725501052909,-500.0,0.00014977,2]
[337212480,1725501052919,-500.0,0.00014977,2]
[337212481,1725501052929,-500.0,0.00014977,2]
[337212482,1725501052938,-759.98,0.00014977,2]
[337212483,1725501052948,-759.98,0.00014977,2]
[337212484,1725501052958,-500.0,0.00014977,2]
[337212485,1725501052970,-500.0,0.00014977,2]
[337212486,1725501052980,-500.0,0.00014977,2]
[337212487,1725501052989,-500.0,0.00014977,2]
[337212488,1725501052999,-500.0,0.00014977,2]
[337212489,1725501053008,-500.0,0.00014977,2]
[337212490,1725501053019,-500.0,0.00014977,2]
[337212491,1725501053030,-500.0,0.00014977,2]
[337212492,1725501053039,-500.0,0.00014977,2]
[337212493,1725501053048,-500.0,0.00014977,2]
[337212494,1725501053058,-500.0,0.00014977,2]
[337212495,1725501053067,-564.69239774,0.00014977,2]
[337212496,1725501053076,-4524.09,0.00014977,2]
[337212497,1725501053085,-4524.09,0.00014977,2]
[337212498,1725501053095,-1178.57,0.00014977,2]
[337212499,1725501053104,-1178.57,0.00014977,2]
[337212500,1725501053114,-3654.15,0.00014977,2]
[337212501,1725501053123,-3654.15,0.00014977,2]
[337212502,1725501053133,-935.21,0.00014977,2]
[337212503,1725501053143,-935.21,0.00014977,2]
[337212504,1725501053152,-500.0,0.00014977,2]
[337212505,1725501053161,-500.0,0.00014977,2]
[337212506,1725501053170,-754.77,0.00014977,2]
[337212507,1725501053179,-754.77,0.00014977,2]
[337212508,1725501053189,-1514.09,0.00014977,2]
[337212509,1725501053198,-1514.09,0.00014977,2]
[337212510,1725501053207,-3075.33,0.00014977,2]
[337212511,1725501053216,-3075.33,0.00014977,2]
[337212512,1725501053481,-502.22558767,0.00014977,2]
[337212513,1725501053491,-1162.24,0.00014977,2]
[337212514,1725501053500,-1162.24,0.00014977,2]
[337212515,1725501053510,-1927.03,0.00014977,2]
[337212516,1725501053519,-1927.03,0.00014977,2]
[337212517,1725501053528,-500.0,0.00014977,2]
[337212518,1725501053538,-500.0,0.00014977,2]
[337212519,1725501053547,-315.0,0.00014978,30]
[337212520,1725501053556,-315.0,0.00014978,30]
[337212521,1725501053566,-315.0,0.00014979,30]
[337212522,1725501053575,-316.0,0.0001498,30]
[337212523,1725501053585,-500.0,0.0001498,2]
[337212524,1725501053595,-2026.89,0.00014981,2]
[337212525,1725501053607,-500.0,0.00014981,2]
[337212526,1725501053619,-1474.2,0.00014981,2]
[337212527,1725501053631,-421.45707924,0.00014981,2]
[337212528,1725501053639,-500.0,0.00014981,2]
[337212529,1725501053649,-384.015946,0.00014981,2]
[337212530,1725501053659,-997.26,0.00014981,2]
[337212531,1725501053668,-500.0,0.00014981,2]
[337212532,1725501053677,-3153.18,0.00014981,2]
[337212533,1725501053686,-663.6,0.00014981,2]
[337212534,1725501053696,-940.12,0.00014981,2]
[337212535,1725501053706,-566.94,0.00014981,2]
[337212536,1725501053718,-3245.99,0.00014981,2]
[337212537,1725501053729,-695.26,0.00014981,2]
[337212538,1725501053739,-534.68,0.00014981,2]
[337212539,1725501053749,-500.0,0.00014981,2]
[337212540,1725501053758,-500.0,0.00014981,2]
[337212541,1725501053768,-1289.87,0.00014981,2]
[337212542,1725501053778,-500.0,0.00014981,2]
[337212543,1725501053789,-500.0,0.00014981,2]
[337212544,1725501053799,-875.37,0.00014981,2]
[337212545,1725501053809,-625.54,0.00014981,2]
[337212546,1725501053818,-743.54,0.00014981,2]
[337212547,1725501053828,-1846.82,0.00014981,2]
[337212548,1725501053838,-500.0,0.00014981,2]
[337212549,1725501053847,-500.0,0.00014981,2]
[337212550,1725501053857,-1087.48,0.00014981,2]
[337212551,1725501053867,-500.0,0.00014981,2]
[337212552,1725501053876,-846.52,0.00014981,2]
[337212553,1725501053885,-961.98,0.00014981,2]
[337212554,1725501053895,-1844.78,0.00014981,2]
[337212555,1725501053904,-1108.75,0.00014981,2]
[337212556,1725501053913,-2656.38,0.00014981,2]
[337212557,1725501053923,-812.89,0.00014981,2]
[337212558,1725501053932,-370.90378908,0.00014981,2]
[337212559,1725501053941,-500.0,0.00014981,2]
[337212560,1725501053951,-518.7,0.00014981,2]
[337212561,1725501053961,-764.18,0.00014981,2]
[337212562,1725501053977,-500.0,0.00014981,2]
[337212563,1725501053987,-2466.34,0.00014981,2]
[337212564,1725501053997,-1065.97,0.00014981,2]
[337212565,1725501054007,-3080.79,0.00014981,2]
[337212566,1725501054016,-500.0,0.00014981,2]
[337212567,1725501054025,-500.0,0.00014981,2]
[337212568,1725501054035,-1138.67,0.00014981,2]
[337212569,1725501054044,-837.31,0.00014981,2]
[337212570,1725501054053,-811.05,0.00014981,2]
[337212571,1725501054063,-1327.1,0.00014981,2]
[337212572,1725501054072,-225.29326646,0.00014981,2]
[337212573,1725501054082,-500.0,0.00014981,2]
[337212574,1725501054091,-691.73,0.00014981,2]
[337212575,1725501054101,-1036.16,0.00014981,2]
[337212576,1725501054110,-622.99,0.00014981,2]
[337212577,1725501054119,-500.0,0.00014981,2]
[337212578,1725501054129,-500.0,0.00014981,2]
[337212579,1725501054138,-500.0,0.00014981,2]
[337212580,1725501054148,-1354.44,0.00014981,2]
[337212581,1725501054157,-680.76,0.00014981,2]
[337212582,1725501054166,-958.36,0.00014981,2]
[337212583,1725501054176,-500.0,0.00014981,2]
[337212584,1725501054185,-1518.49,0.00014981,2]
[337212585,1725501054194,-1118.3,0.00014981,2]
[337212586,1725501054204,-500.0,0.00014981,2]
[337212587,1725501054213,-500.0,0.00014981,2]
[337212588,1725501054222,-500.0,0.00014981,2]
[337212589,1725501054231,-636.1,0.00014981,2]
[337212590,1725501054240,-500.0,0.00014981,2]
[337212591,1725501054249,-889.54,0.00014981,2]
[337212592,1725501054258,-500.0,0.00014981,2]
[337212593,1725501054267,-500.0,0.00014981,2]
[337212594,1725501054277,-582.39,0.00014981,2]
[337212595,1725501054286,-500.0,0.00014981,2]
[337212596,1725501054295,-500.94,0.00014981,2]
[337212597,1725501054304,-624.44,0.00014981,2]
[337212598,1725501054314,-2026.89,0.00014982,2]
[337212599,1725501054324,-2026.89,0.00014982,2]
[337212600,1725501054333,-554.72695899,0.00014982,2]
[337212601,1725501054342,-1474.2,0.00014982,2]
[337212602,1725501054351,-1474.2,0.00014982,2]
[337212603,1725501054361,-500.0,0.00014982,2]
[337212604,1725501054370,-500.0,0.00014982,2]
[337212605,1725501054379,-628.04,0.00014982,2]
[337212606,1725501054388,-997.26,0.00014982,2]
[337212607,1725501054398,-997.26,0.00014982,2]
[337212608,1725501054407,-500.0,0.00014982,2]
[337212609,1725501054417,-500.0,0.00014982,2]
[337212610,1725501054427,-1311.39,0.00014982,2]
[337212611,1725501054436,-1311.39,0.00014982,2]
[337212612,1725501054446,-3153.18,0.00014982,2]
[337212613,1725501054455,-3153.18,0.00014982,2]
[337212614,1725501054464,-663.6,0.00014982,2]
[337212615,1725501054473,-663.6,0.00014982,2]
[337212616,1725501054483,-940.12,0.00014982,2]
[337212617,1725501054492,-940.12,0.00014982,2]
[337212618,1725501054501,-566.94,0.00014982,2]
[337212619,1725501054511,-566.94,0.00014982,2]
[337212620,1725501054520,-3245.99,0.00014982,2]
[337212621,1725501054529,-3245.99,0.00014982,2]
[337212622,1725501054539,-500.0,0.00014982,2]
[337212623,1725501054548,-304.15689591,0.00014982,2]
[337212624,1725501054557,-695.26,0.00014982,2]
[337212625,1725501054567,-695.26,0.00014982,2]
[337212626,1725501054576,-500.0,0.00014982,2]
[337212627,1725501054586,-500.0,0.00014982,2]
[337212628,1725501054595,-534.68,0.00014982,2]
[337212629,1725501054605,-534.68,0.00014982,2]
[337212630,1725501054615,-307.63941273,0.00014982,2]
[337212631,1725501054624,-500.0,0.00014982,2]
[337212632,1725501054633,-500.0,0.00014982,2]
[337212633,1725501054642,-500.0,0.00014982,2]
[337212634,1725501054652,-500.0,0.00014982,2]
[337212635,1725501054662,-1289.87,0.00014982,2]
[337212636,1725501054672,-1289.87,0.00014982,2]
[337212637,1725501054682,-500.0,0.00014982,2]
[337212638,1725501054691,-500.0,0.00014982,2]
[337212639,1725501054701,-500.0,0.00014982,2]
[337212640,1725501054711,-500.0,0.00014982,2]
[337212641,1725501054723,-875.37,0.00014982,2]
[337212642,1725501054732,-875.37,0.00014982,2]
[337212643,1725501054743,-625.54,0.00014982,2]
[337212644,1725501054752,-625.54,0.00014982,2]
[337212645,1725501054762,-743.54,0.00014982,2]
[337212646,1725501054772,-743.54,0.00014982,2]
[337212647,1725501054781,-1846.82,0.00014982,2]
[337212648,1725501054790,-1846.82,0.00014982,2]
[337212649,1725501054800,-500.0,0.00014982,2]
[337212650,1725501054810,-500.0,0.00014982,2]
[337212651,1725501054820,-500.0,0.00014982,2]
[337212652,1725501054830,-227.53346307,0.00014982,2]
[337212653,1725501054839,-1087.48,0.00014982,2]
[337212654,1725501054849,-1087.48,0.00014982,2]
[337212655,1725501054860,-500.0,0.00014982,2]
[337212656,1725501054869,-500.0,0.00014982,2]
[337212657,1725501054879,-846.52,0.00014982,2]
[337212658,1725501054888,-846.52,0.00014982,2]
[337212659,1725501054898,-961.98,0.00014982,2]
[337212660,1725501054908,-961.98,0.00014982,2]
[337212661,1725501054917,-1844.78,0.00014982,2]
[337212662,1725501054926,-1844.78,0.00014982,2]
[337212663,1725501054936,-1108.75,0.00014982,2]
[337212664,1725501054945,-1108.75,0.00014982,2]
[337212665,1725501054955,-2656.38,0.00014982,2]
[337212666,1725501054965,-2656.38,0.00014982,2]
[337212667,1725501054977,-812.89,0.00014982,2]
[337212668,1725501054986,-812.89,0.00014982,2]
[337212669,1725501054996,-500.0,0.00014982,2]
[337212670,1725501055005,-500.0,0.00014982,2]
[337212671,1725501055015,-518.7,0.00014982,2]
[337212672,1725501055025,-518.7,0.00014982,2]
[337212673,1725501055034,-764.18,0.00014982,2]
[337212674,1725501055044,-764.18,0.00014982,2]
[337212675,1725501055054,-500.0,0.00014982,2]
[337212676,1725501055063,-500.0,0.00014982,2]
[337212677,1725501055073,-2466.34,0.00014982,2]
[337212678,1725501055083,-2466.34,0.00014982,2]
[337212679,1725501055093,-1065.97,0.00014982,2]
[337212680,1725501055102,-1065.97,0.00014982,2]
[337212681,1725501055112,-3080.79,0.00014982,2]
[337212682,1725501055122,-3080.79,0.00014982,2]
[337212683,1725501055132,-500.0,0.00014982,2]
[337212684,1725501055141,-500.0,0.00014982,2]
[337212685,1725501055151,-500.0,0.00014982,2]
[337212686,1725501055160,-500.0,0.00014982,2]
[337212687,1725501055170,-1138.67,0.00014982,2]
[337212688,1725501055180,-1138.67,0.00014982,2]
[337212689,1725501055189,-837.31,0.00014982,2]
[337212690,1725501055198,-837.31,0.00014982,2]
[337212691,1725501055208,-811.05,0.00014982,2]
[337212692,1725501055217,-811.05,0.00014982,2]
[337212693,1725501055227,-1327.1,0.00014982,2]
[337212694,1725501055237,-1327.1,0.00014982,2]
[337212695,1725501055247,-397.15842654,0.00014982,2]
[337212696,1725501055256,-691.73,0.00014982,2]
[337212697,1725501055266,-691.73,0.00014982,2]
[337212698,1725501055275,-1036.16,0.00014982,2]
[337212699,1725501055285,-1036.16,0.00014982,2]
[337212700,1725501055294,-622.99,0.00014982,2]
[337212701,1725501055303,-622.99,0.00014982,2]
[337212702,1725501055313,-500.0,0.00014982,2]
[337212703,1725501055323,-1021.79,0.00014982,2]
[337212704,1725501055333,-500.0,0.00014982,2]
[337212705,1725501055342,-500.0,0.00014982,2]
[337212706,1725501055352,-500.0,0.00014982,2]
[337212707,1725501055361,-500.0,0.00014982,2]
[337212708,1725501055371,-500.0,0.00014982,2]
[337212709,1725501055382,-500.0,0.00014982,2]
[337212710,1725501055392,-500.0,0.00014982,2]
[337212711,1725501055402,-1354.44,0.00014982,2]
[337212712,1725501055412,-1354.44,0.00014982,2]
[337212713,1725501055422,-922.89,0.00014982,2]
[337212714,1725501055432,-625.67083571,0.00014982,2]
[337212715,1725501055441,-680.76,0.00014982,2]
[337212716,1725501055451,-680.76,0.00014982,2]
[337212717,1725501055461,-958.36,0.00014982,2]
[337212718,1725501055470,-958.36,0.00014982,2]
[337212719,1725501055480,-500.0,0.00014982,2]
[337212720,1725501055489,-500.0,0.00014982,2]
[337212721,1725501055499,-500.0,0.00014982,2]
[337212722,1725501055524,-1807.0,0.00014982,2]
[337212723,1725501055534,-1518.49,0.00014982,2]
[337212724,1725501055543,-1518.49,0.00014982,2]
[337212725,1725501055553,-2541.07,0.00014982,2]
[337212726,1725501055562,-500.0,0.00014982,2]
[337212727,1725501055572,-217.5873669,0.00014982,2]
[337212728,1725501055583,-630.40627942,0.00014982,2]
[337212729,1725501055593,-591.92,0.00014982,2]
[337212730,1725501055603,-1118.3,0.00014982,2]
[337212731,1725501055614,-1118.3,0.00014982,2]
[337212732,1725501055623,-546.34,0.00014982,2]
[337212733,1725501055632,-307.80266768,0.00014982,2]
[337212734,1725501055642,-552.38,0.00014982,2]
[337212735,1725501055653,-500.0,0.00014982,2]
[337212736,1725501055663,-500.0,0.00014982,2]
[337212737,1725501055673,-500.0,0.00014982,2]
[337212738,1725501055682,-584.55978248,0.00014982,2]
[337212739,1725501055692,-636.1,0.00014982,2]
[337212740,1725501055702,-636.1,0.00014982,2]
[337212741,1725501055711,-588.03,0.00014982,2]
[337212742,1725501055721,-500.0,0.00014982,2]
[337212743,1725501055731,-500.0,0.00014982,2]
[337212744,1725501055741,-1053.46,0.00014982,2]
[337212745,1725501055750,-889.54,0.00014982,2]
[337212746,1725501055760,-889.54,0.00014982,2]
[337212747,1725501055770,-500.0,0.00014982,2]
[337212748,1725501055780,-500.0,0.00014982,2]
[337212749,1725501055790,-500.0,0.00014982,2]
[337212750,1725501055799,-391.74561949,0.00014982,2]
[337212751,1725501055809,-500.0,0.00014982,2]
[337212752,1725501055820,-573.64,0.00014982,2]
[337212753,1725501055831,-582.39,0.00014982,2]
[337212754,1725501055841,-582.39,0.00014982,2]
[337212755,1725501055850,-2719.8,0.00014982,2]
[337212756,1725501055921,-500.0,0.00014982,2]
[337212757,1725501055932,-311.16725428,0.00014982,2]
[337212758,1725501055942,-500.94,0.00014982,2]
[337212759,1725501055952,-500.94,0.00014982,2]
[337212760,1725501055963,-500.0,0.00014982,2]
[337212761,1725501055977,-582.03823083,0.00014982,2]
[337212762,1725501055986,-624.44,0.00014982,2]
[337212763,1725501055996,-624.44,0.00014982,2]
[337212764,1725501056005,-500.0,0.00014982,2]
[337212765,1725501056015,-500.0,0.00014982,2]
[337212766,1725501056025,-500.0,0.00014982,2]
[337212767,1725501056035,-500.0,0.00014982,2]
[337212768,1725501056045,-500.0,0.00014982,2]
[337212769,1725501056054,-500.0,0.00014982,2]
[337212770,1725501056064,-846.14,0.00014982,2]
[337212771,1725501056074,-500.0,0.00014982,2]
[337212772,1725501056083,-989.47,0.00014982,2]
[337212773,1725501056092,-1269.37,0.00014982,2]
[337212774,1725501056102,-500.0,0.00014982,2]
[337212775,1725501056111,-500.0,0.00014982,2]
[337212776,1725501056120,-1302.95,0.00014982,2]
[337212777,1725501056130,-735.55,0.00014982,2]
[337212778,1725501056139,-759.75,0.00014982,2]
[337212779,1725501056154,-500.0,0.00014982,2]
[337212780,1725501056163,-500.0,0.00014982,2]
[337212781,1725501056172,-1391.46,0.00014982,2]
[337212782,1725501056181,-500.0,0.00014982,2]
[337212783,1725501056190,-545.5,0.00014982,2]
[337212784,1725501056199,-1426.67,0.00014982,2]
[337212785,1725501056209,-518.55,0.00014982,2]
[337212786,1725501056218,-500.0,0.00014982,2]
[337212787,1725501056227,-500.0,0.00014982,2]
[337212788,1725501056236,-646.65,0.00014982,2]
[337212789,1725501056245,-500.0,0.00014982,2]
[337212790,1725501056254,-500.0,0.00014982,2]
[337212791,1725501056263,-2026.89,0.00014983,2]
[337212792,1725501056272,-2026.89,0.00014983,2]
[337212793,1725501056282,-2026.89,0.00014983,2]
[337212794,1725501056292,-1474.2,0.00014983,2]
[337212795,1725501056302,-1474.2,0.00014983,2]
[337212796,1725501056312,-1474.2,0.00014983,2]
[337212797,1725501056322,-500.0,0.00014983,2]
[337212798,1725501056331,-628.04,0.00014983,2]
[337212799,1725501056341,-628.04,0.00014983,2]
[337212800,1725501056350,-500.0,0.00014983,2]
[337212801,1725501056359,-500.0,0.00014983,2]
[337212802,1725501056369,-997.26,0.00014983,2]
[337212803,1725501056378,-997.26,0.00014983,2]
[337212804,1725501056386,-997.26,0.00014983,2]
[337212805,1725501056397,-500.0,0.00014983,2]
[337212806,1725501056406,-500.0,0.00014983,2]
[337212807,1725501056415,-1311.39,0.00014983,2]
[337212808,1725501056424,-3153.18,0.00014983,2]
[337212809,1725501056433,-3153.18,0.00014983,2]
[337212810,1725501056442,-663.6,0.00014983,2]
[337212811,1725501056451,-663.6,0.00014983,2]
[337212812,1725501056460,-663.6,0.00014983,2]
[337212813,1725501056470,-940.12,0.00014983,2]
[337212814,1725501056479,-940.12,0.00014983,2]
[337212815,1725501056487,-566.94,0.00014983,2]
[337212816,1725501056497,-566.94,0.00014983,2]
[337212817,1725501056506,-3245.99,0.00014983,2]
[337212818,1725501056514,-3245.99,0.00014983,2]
[337212819,1725501056523,-3245.99,0.00014983,2]
[337212820,1725501056535,-695.26,0.00014983,2]
[337212821,1725501056545,-695.26,0.00014983,2]
[337212822,1725501056554,-695.26,0.00014983,2]
[337212823,1725501056564,-534.68,0.00014983,2]
[337212824,1725501056574,-534.68,0.00014983,2]
[337212825,1725501056583,-500.0,0.00014983,2]
[337212826,1725501056592,-500.0,0.00014983,2]
[337212827,1725501056601,-500.0,0.00014983,2]
[337212828,1725501056610,-500.0,0.00014983,2]
[337212829,1725501056619,-500.0,0.00014983,2]
[337212830,1725501056627,-500.0,0.00014983,2]
[337212831,1725501056636,-1289.87,0.00014983,2]
[337212832,1725501056646,-1289.87,0.00014983,2]
[337212833,1725501056655,-1289.87,0.00014983,2]
[337212834,1725501056664,-500.0,0.00014983,2]
[337212835,1725501056674,-500.0,0.00014983,2]